[Event "Titled Tuesday Blitz February 21 Early 2023"]
[White "Vovk, Orest"]
[Black "Indjic, Aleksandar"]
[WhiteFideId "14113490"]
[BlackFideId "911925"]
[WhiteElo "2315"]
[BlackElo "2618"]
[Result "0-1"]
[Round "08"]
[TimeControl "180+2"]
[Date "2023.02.21"]
[WhiteClock "0:01:14"]
[BlackClock "0:02:02"]

1. h4 {[%clk 0:02:53]}  c5 {[%clk 0:02:59]} 2. h5 {[%clk 0:02:53]}  d5 {[%clk 0:02:59]} 3. e4 {[%clk 0:02:51]}  e6 {[%clk 0:02:51]} 4. Nc3 {[%clk 0:02:50]}  d4 {[%clk 0:02:50]} 5. Nce2 {[%clk 0:02:50]}  a6 {[%clk 0:02:47]} 6. Ng3 {[%clk 0:02:50]}  h6 {[%clk 0:02:46]} 7. Nf3 {[%clk 0:02:50]}  Nc6 {[%clk 0:02:44]} 8. d3 {[%clk 0:02:48]}  Bd6 {[%clk 0:02:41]} 9. Rh4 {[%clk 0:02:42]}  Nf6 {[%clk 0:02:37]} 10. Qe2 {[%clk 0:02:36]}  Qc7 {[%clk 0:02:35]} 11. Rh3 {[%clk 0:02:27]}  Bd7 {[%clk 0:02:27]} 12. Nd2 {[%clk 0:02:18]}  b5 {[%clk 0:02:25]} 13. a4 {[%clk 0:02:17]}  Rb8 {[%clk 0:02:25]} 14. axb5 {[%clk 0:02:17]}  axb5 {[%clk 0:02:26]} 15. Nf3 {[%clk 0:02:07]}  O-O {[%clk 0:02:24]} 16. Nh2 {[%clk 0:01:38]}  Ra8 {[%clk 0:02:20]} 17. Rxa8 {[%clk 0:01:36]}  Rxa8 {[%clk 0:02:19]} 18. Ng4 {[%clk 0:01:23]}  Nxg4 {[%clk 0:02:13]} 19. Qxg4 {[%clk 0:01:23]}  Ra1 {[%clk 0:02:12]} 20. Ne2 {[%clk 0:01:23]}  Bf4 {[%clk 0:02:04]} 21. Qxf4 {[%clk 0:01:17]}  Qxf4 {[%clk 0:02:02]} 22. Nxf4 {[%clk 0:01:16]}  Rxc1+ {[%clk 0:02:02]} 23. Kd2 {[%clk 0:01:14]}  Rxf1 {[%clk 0:02:02]} 0-1


[Site "https://www.chess.com"]

[Event "Titled Tuesday Blitz February 21 Early 2023"]
[White "Bharath Subramaniyam H"]
[Black "Skliarov, Viktor"]
[WhiteFideId "46634827"]
[BlackFideId "14106736"]
[WhiteElo "2517"]
[BlackElo "2383"]
[Result "1-0"]
[Round "08"]
[TimeControl "180+2"]
[Date "2023.02.21"]
[WhiteClock "0:00:51"]
[BlackClock "0:00:01"]

1. c4 {[%clk 0:03:00]}  e5 {[%clk 0:02:59]} 2. Nf3 {[%clk 0:02:59]}  Nc6 {[%clk 0:02:57]} 3. d4 {[%clk 0:02:59]}  exd4 {[%clk 0:02:54]} 4. Nxd4 {[%clk 0:03:00]}  Bb4+ {[%clk 0:02:54]} 5. Bd2 {[%clk 0:02:59]}  Bxd2+ {[%clk 0:02:53]} 6. Qxd2 {[%clk 0:02:59]}  Nxd4 {[%clk 0:02:53]} 7. Qxd4 {[%clk 0:02:59]}  Nf6 {[%clk 0:02:54]} 8. Nc3 {[%clk 0:03:00]}  O-O {[%clk 0:02:54]} 9. g3 {[%clk 0:03:01]}  d6 {[%clk 0:02:34]} 10. Bg2 {[%clk 0:03:00]}  Re8 {[%clk 0:02:32]} 11. O-O {[%clk 0:03:00]}  Qe7 {[%clk 0:02:32]} 12. e4 {[%clk 0:02:52]}  a6 {[%clk 0:02:30]} 13. Nd5 {[%clk 0:02:51]}  Nxd5 {[%clk 0:02:30]} 14. cxd5 {[%clk 0:02:52]}  f5 {[%clk 0:02:20]} 15. Rfe1 {[%clk 0:02:48]}  Bd7 {[%clk 0:01:52]} 16. Qc3 {[%clk 0:02:43]}  c5 {[%clk 0:01:23]} 17. dxc6 {[%clk 0:02:32]}  Bxc6 {[%clk 0:01:15]} 18. exf5 {[%clk 0:02:32]}  Qf6 {[%clk 0:01:06]} 19. Bxc6 {[%clk 0:02:27]}  bxc6 {[%clk 0:01:00]} 20. Qxc6 {[%clk 0:02:26]}  Rxe1+ {[%clk 0:00:52]} 21. Rxe1 {[%clk 0:02:25]}  Rf8 {[%clk 0:00:53]} 22. Qd5+ {[%clk 0:02:21]}  Kh8 {[%clk 0:00:52]} 23. Re2 {[%clk 0:02:20]}  h5 {[%clk 0:00:48]} 24. h4 {[%clk 0:02:04]}  Qxf5 {[%clk 0:00:42]} 25. Qxd6 {[%clk 0:02:03]}  Rf6 {[%clk 0:00:37]} 26. Qd8+ {[%clk 0:02:00]}  Kh7 {[%clk 0:00:37]} 27. Rd2 {[%clk 0:01:59]}  Qb1+ {[%clk 0:00:36]} 28. Kh2 {[%clk 0:01:59]}  Qxa2 {[%clk 0:00:36]} 29. Qd3+ {[%clk 0:01:57]}  Kh6 {[%clk 0:00:34]} 30. Qe3+ {[%clk 0:01:55]}  Kh7 {[%clk 0:00:34]} 31. Qg5 {[%clk 0:01:50]}  Qf7 {[%clk 0:00:31]} 32. Kg1 {[%clk 0:01:50]}  Qg6 {[%clk 0:00:30]} 33. Qc5 {[%clk 0:01:44]}  Qg4 {[%clk 0:00:27]} 34. Rd5 {[%clk 0:01:40]}  Kh6 {[%clk 0:00:22]} 35. Rg5 {[%clk 0:01:31]}  Qf3 {[%clk 0:00:20]} 36. Qa7 {[%clk 0:01:31]}  g6 {[%clk 0:00:13]} 37. Qd4 {[%clk 0:01:20]}  Kh7 {[%clk 0:00:02]} 38. Rd5 {[%clk 0:01:19]}  Rf7 {[%clk 0:00:02]} 39. Re5 {[%clk 0:01:09]}  Rc7 {[%clk 0:00:01]} 40. Re1 {[%clk 0:01:08]}  Rf7 {[%clk 0:00:02]} 41. Re8 {[%clk 0:01:07]}  Qf6 {[%clk 0:00:01]} 42. Qd2 {[%clk 0:01:01]}  Kg7 {[%clk 0:00:01]} 43. Rd8 {[%clk 0:00:59]}  Re7 {[%clk 0:00:01]} 44. Rd6 {[%clk 0:00:58]}  Re6 {[%clk 0:00:02]} 45. Rd7+ {[%clk 0:00:54]}  Re7 {[%clk 0:00:02]} 46. Rd3 {[%clk 0:00:54]}  Re6 {[%clk 0:00:02]} 47. Kg2 {[%clk 0:00:53]}  Kh7 {[%clk 0:00:02]} 48. Rf3 {[%clk 0:00:54]}  Qe7 {[%clk 0:00:02]} 49. Qd5 {[%clk 0:00:53]}  Re5 {[%clk 0:00:01]} 50. Rf7+ {[%clk 0:00:52]}  Kh6 {[%clk 0:00:01]} 51. Qd2+ {[%clk 0:00:51]} 1-0


[Site "https://www.chess.com"]

[Event "Titled Tuesday Blitz February 21 Early 2023"]
[White "Vaibhav Jayant Raut"]
[Black "Grigoriants, Sergey"]
[WhiteFideId "5089034"]
[BlackFideId "4130804"]
[WhiteElo "2237"]
[BlackElo "2562"]
[Result "1/2-1/2"]
[Round "08"]
[TimeControl "180+2"]
[Date "2023.02.21"]
[WhiteClock "0:01:22"]
[BlackClock "0:00:14"]

1. c4 {[%clk 0:03:00]}  e5 {[%clk 0:02:54]} 2. g3 {[%clk 0:03:00]}  Nf6 {[%clk 0:02:53]} 3. Bg2 {[%clk 0:03:01]}  c6 {[%clk 0:02:46]} 4. Nf3 {[%clk 0:03:00]}  e4 {[%clk 0:02:46]} 5. Nd4 {[%clk 0:03:01]}  d5 {[%clk 0:02:47]} 6. cxd5 {[%clk 0:03:00]}  Qxd5 {[%clk 0:02:47]} 7. e3 {[%clk 0:03:01]}  Qe5 {[%clk 0:02:46]} 8. O-O {[%clk 0:03:00]}  Be7 {[%clk 0:02:40]} 9. Nc3 {[%clk 0:02:56]}  Na6 {[%clk 0:02:38]} 10. d3 {[%clk 0:02:51]}  exd3 {[%clk 0:02:38]} 11. Qxd3 {[%clk 0:02:52]}  Nc5 {[%clk 0:02:37]} 12. Qe2 {[%clk 0:02:52]}  O-O {[%clk 0:02:37]} 13. b3 {[%clk 0:02:52]}  Bg4 {[%clk 0:02:31]} 14. Qc2 {[%clk 0:02:53]}  Bh5 {[%clk 0:02:30]} 15. Bb2 {[%clk 0:02:51]}  Bg6 {[%clk 0:02:30]} 16. Qd2 {[%clk 0:02:42]}  Nd3 {[%clk 0:02:26]} 17. Nf3 {[%clk 0:02:40]}  Qa5 {[%clk 0:02:13]} 18. a3 {[%clk 0:02:33]}  Rad8 {[%clk 0:02:06]} 19. Qe2 {[%clk 0:02:26]}  Qb6 {[%clk 0:01:47]} 20. b4 {[%clk 0:02:23]}  a5 {[%clk 0:01:47]} 21. Nh4 {[%clk 0:02:00]}  axb4 {[%clk 0:01:31]} 22. axb4 {[%clk 0:01:59]}  Bh5 {[%clk 0:00:35]} 23. Qc2 {[%clk 0:01:52]}  Nxb2 {[%clk 0:00:35]} 24. Qxb2 {[%clk 0:01:50]}  Qxb4 {[%clk 0:00:36]} 25. Qc2 {[%clk 0:01:49]}  Qc5 {[%clk 0:00:32]} 26. Rfc1 {[%clk 0:01:37]}  Rd7 {[%clk 0:00:25]} 27. Qb3 {[%clk 0:01:27]}  Qb4 {[%clk 0:00:20]} 28. Qc2 {[%clk 0:01:24]}  Qc5 {[%clk 0:00:14]} 29. Qb3 {[%clk 0:01:23]}  Qb4 {[%clk 0:00:14]} 30. Qc2 {[%clk 0:01:22]}  Qc5 {[%clk 0:00:14]} 1/2-1/2


[Site "https://www.chess.com"]

[Event "Titled Tuesday Blitz February 21 Early 2023"]
[White "Ivic, Velimir"]
[Black "Stijve, Theo"]
[WhiteFideId "950122"]
[BlackFideId "1331132"]
[WhiteElo "2595"]
[BlackElo "2351"]
[Result "0-1"]
[Round "08"]
[TimeControl "180+2"]
[Date "2023.02.21"]
[WhiteClock "0:00:11"]
[BlackClock "0:00:14"]

1. e4 {[%clk 0:03:00]}  c5 {[%clk 0:02:59]} 2. Nf3 {[%clk 0:03:00]}  e6 {[%clk 0:02:59]} 3. d4 {[%clk 0:02:58]}  cxd4 {[%clk 0:03:00]} 4. Nxd4 {[%clk 0:02:59]}  Nc6 {[%clk 0:03:01]} 5. Nc3 {[%clk 0:02:56]}  Qc7 {[%clk 0:03:01]} 6. Be3 {[%clk 0:02:47]}  a6 {[%clk 0:03:01]} 7. Qd2 {[%clk 0:02:47]}  Nf6 {[%clk 0:03:00]} 8. f4 {[%clk 0:02:39]}  b5 {[%clk 0:02:53]} 9. e5 {[%clk 0:02:33]}  b4 {[%clk 0:02:51]} 10. Ncb5 {[%clk 0:02:30]}  axb5 {[%clk 0:02:40]} 11. Nxb5 {[%clk 0:02:31]}  Qb8 {[%clk 0:02:30]} 12. exf6 {[%clk 0:02:28]}  gxf6 {[%clk 0:02:27]} 13. c4 {[%clk 0:02:27]}  bxc3 {[%clk 0:02:21]} 14. bxc3 {[%clk 0:02:27]}  Ba6 {[%clk 0:02:15]} 15. Rb1 {[%clk 0:02:23]}  Rg8 {[%clk 0:02:01]} 16. Bd3 {[%clk 0:02:17]}  f5 {[%clk 0:01:56]} 17. O-O {[%clk 0:02:14]}  Be7 {[%clk 0:01:53]} 18. Qf2 {[%clk 0:01:51]}  d5 {[%clk 0:01:44]} 19. c4 {[%clk 0:01:39]}  dxc4 {[%clk 0:01:26]} 20. Bxc4 {[%clk 0:01:38]}  Nb4 {[%clk 0:01:12]} 21. Qe2 {[%clk 0:01:30]}  Qb7 {[%clk 0:01:04]} 22. a3 {[%clk 0:01:26]}  Bxb5 {[%clk 0:00:44]} 23. Bxb5+ {[%clk 0:01:27]}  Nc6 {[%clk 0:00:44]} 24. Rfc1 {[%clk 0:01:21]}  Rc8 {[%clk 0:00:38]} 25. Bxc6+ {[%clk 0:01:02]}  Qxc6 {[%clk 0:00:35]} 26. Rxc6 {[%clk 0:01:00]}  Rxc6 {[%clk 0:00:36]} 27. Qb5 {[%clk 0:00:57]}  Kd7 {[%clk 0:00:36]} 28. Qb7+ {[%clk 0:00:53]}  Rc7 {[%clk 0:00:36]} 29. Rd1+ {[%clk 0:00:52]}  Bd6 {[%clk 0:00:36]} 30. Qb4 {[%clk 0:00:47]}  Rc6 {[%clk 0:00:25]} 31. Rxd6+ {[%clk 0:00:46]}  Rxd6 {[%clk 0:00:22]} 32. Qxd6+ {[%clk 0:00:46]}  Kxd6 {[%clk 0:00:21]} 33. Kf2 {[%clk 0:00:25]}  Ra8 {[%clk 0:00:20]} 34. Bd2 {[%clk 0:00:25]}  Kd5 {[%clk 0:00:19]} 35. Bb4 {[%clk 0:00:24]}  Ke4 {[%clk 0:00:18]} 36. g3 {[%clk 0:00:23]}  Rc8 {[%clk 0:00:19]} 37. Kg2 {[%clk 0:00:18]}  Rc2+ {[%clk 0:00:18]} 38. Kh3 {[%clk 0:00:19]}  Ra2 {[%clk 0:00:18]} 39. Be7 {[%clk 0:00:18]}  Kf3 {[%clk 0:00:18]} 40. Bb4 {[%clk 0:00:17]}  f6 {[%clk 0:00:18]} 41. Be7 {[%clk 0:00:17]}  e5 {[%clk 0:00:19]} 42. Bxf6 {[%clk 0:00:17]}  e4 {[%clk 0:00:19]} 43. Be7 {[%clk 0:00:15]}  e3 {[%clk 0:00:19]} 44. Bb4 {[%clk 0:00:15]}  e2 {[%clk 0:00:18]} 45. Kh4 {[%clk 0:00:16]}  Rxa3 {[%clk 0:00:19]} 46. h3 {[%clk 0:00:15]}  Ra4 {[%clk 0:00:18]} 47. Bd2 {[%clk 0:00:14]}  Rd4 {[%clk 0:00:18]} 48. Ba5 {[%clk 0:00:14]}  Rd1 {[%clk 0:00:18]} 49. g4 {[%clk 0:00:12]}  fxg4 {[%clk 0:00:17]} 50. f5 {[%clk 0:00:13]}  g3 {[%clk 0:00:14]} 51. f6 {[%clk 0:00:13]}  Rd7 {[%clk 0:00:14]} 52. Bb4 {[%clk 0:00:11]}  g2 {[%clk 0:00:14]} 0-1


[Site "https://www.chess.com"]

[Event "Titled Tuesday Blitz February 21 Early 2023"]
[White "Orlov, Georgi"]
[Black "Stribuk, Artiom"]
[WhiteFideId "2011271"]
[BlackFideId "13515659"]
[WhiteElo "2453"]
[BlackElo "2378"]
[Result "1-0"]
[Round "08"]
[TimeControl "180+2"]
[Date "2023.02.21"]
[WhiteClock "0:01:25"]
[BlackClock "0:00:02"]

1. e4 {[%clk 0:03:00]}  c5 {[%clk 0:02:57]} 2. Nf3 {[%clk 0:03:00]}  Nc6 {[%clk 0:02:58]} 3. Bb5 {[%clk 0:02:51]}  e6 {[%clk 0:02:58]} 4. Bxc6 {[%clk 0:02:50]}  bxc6 {[%clk 0:02:59]} 5. e5 {[%clk 0:02:50]}  f6 {[%clk 0:02:58]} 6. O-O {[%clk 0:02:49]}  Ne7 {[%clk 0:02:55]} 7. exf6 {[%clk 0:02:48]}  gxf6 {[%clk 0:02:55]} 8. d4 {[%clk 0:02:34]}  cxd4 {[%clk 0:02:55]} 9. Qxd4 {[%clk 0:02:25]}  Nf5 {[%clk 0:02:54]} 10. Qg4 {[%clk 0:02:24]}  Qe7 {[%clk 0:02:32]} 11. Re1 {[%clk 0:02:21]}  Rb8 {[%clk 0:02:10]} 12. c4 {[%clk 0:02:20]}  d5 {[%clk 0:01:45]} 13. cxd5 {[%clk 0:02:15]}  cxd5 {[%clk 0:01:46]} 14. Nc3 {[%clk 0:02:15]}  Rb4 {[%clk 0:00:25]} 15. Qh5+ {[%clk 0:01:56]}  Kd8 {[%clk 0:00:25]} 16. Nxd5 {[%clk 0:01:52]}  exd5 {[%clk 0:00:26]} 17. Rxe7 {[%clk 0:01:51]}  Bxe7 {[%clk 0:00:27]} 18. Bd2 {[%clk 0:01:50]}  Rxb2 {[%clk 0:00:26]} 19. Ba5+ {[%clk 0:01:48]}  Rb6 {[%clk 0:00:26]} 20. Bxb6+ {[%clk 0:01:47]}  axb6 {[%clk 0:00:27]} 21. Rd1 {[%clk 0:01:47]}  Be6 {[%clk 0:00:26]} 22. Rxd5+ {[%clk 0:01:38]}  Bxd5 {[%clk 0:00:26]} 23. Qxf5 {[%clk 0:01:38]}  Bc6 {[%clk 0:00:08]} 24. Nd4 {[%clk 0:01:37]}  Bd7 {[%clk 0:00:08]} 25. Qd5 {[%clk 0:01:37]}  Kc7 {[%clk 0:00:06]} 26. Ne6+ {[%clk 0:01:31]}  Bxe6 {[%clk 0:00:04]} 27. Qxe6 {[%clk 0:01:31]}  Bc5 {[%clk 0:00:05]} 28. Qf7+ {[%clk 0:01:31]}  Kb8 {[%clk 0:00:04]} 29. Qxf6 {[%clk 0:01:31]}  Re8 {[%clk 0:00:05]} 30. Qf4+ {[%clk 0:01:29]}  Ka8 {[%clk 0:00:03]} 31. g3 {[%clk 0:01:29]}  Re1+ {[%clk 0:00:03]} 32. Kg2 {[%clk 0:01:29]}  Ka7 {[%clk 0:00:02]} 33. Qd2 {[%clk 0:01:27]}  Ra1 {[%clk 0:00:02]} 34. h4 {[%clk 0:01:27]}  b5 {[%clk 0:00:02]} 35. Qb2 {[%clk 0:01:25]} 1-0


[Site "https://www.chess.com"]

[Event "Titled Tuesday Blitz February 21 Early 2023"]
[White "Yuan, Qingyu"]
[Black "Andreev, Eduard"]
[WhiteFideId "8609772"]
[BlackFideId "14103400"]
[WhiteElo "2373"]
[BlackElo "2413"]
[Result "1-0"]
[Round "08"]
[TimeControl "180+2"]
[Date "2023.02.21"]
[WhiteClock "0:00:03"]
[BlackClock "0:00:03"]

1. e4 {[%clk 0:02:56]}  c5 {[%clk 0:03:00]} 2. Nf3 {[%clk 0:02:55]}  d6 {[%clk 0:03:00]} 3. Bb5+ {[%clk 0:02:56]}  Nd7 {[%clk 0:03:00]} 4. c3 {[%clk 0:02:56]}  a6 {[%clk 0:02:59]} 5. Ba4 {[%clk 0:02:56]}  b5 {[%clk 0:02:59]} 6. Bc2 {[%clk 0:02:56]}  e6 {[%clk 0:02:56]} 7. O-O {[%clk 0:02:55]}  Ngf6 {[%clk 0:02:55]} 8. d4 {[%clk 0:02:56]}  cxd4 {[%clk 0:02:54]} 9. cxd4 {[%clk 0:02:56]}  Bb7 {[%clk 0:02:54]} 10. Qe2 {[%clk 0:02:57]}  Rc8 {[%clk 0:02:54]} 11. a3 {[%clk 0:02:52]}  Rxc2 {[%clk 0:02:37]} 12. Qxc2 {[%clk 0:02:52]}  Bxe4 {[%clk 0:02:38]} 13. Qe2 {[%clk 0:02:52]}  Be7 {[%clk 0:02:35]} 14. Nc3 {[%clk 0:02:49]}  Bb7 {[%clk 0:02:34]} 15. Bf4 {[%clk 0:02:33]}  O-O {[%clk 0:02:33]} 16. h3 {[%clk 0:02:32]}  Qa8 {[%clk 0:02:25]} 17. Rac1 {[%clk 0:02:31]}  Nb6 {[%clk 0:02:21]} 18. Rfd1 {[%clk 0:02:29]}  Rc8 {[%clk 0:02:15]} 19. Ne1 {[%clk 0:02:20]}  h6 {[%clk 0:02:08]} 20. f3 {[%clk 0:02:13]}  Nh5 {[%clk 0:01:53]} 21. Bh2 {[%clk 0:01:54]}  Bg5 {[%clk 0:01:42]} 22. Rc2 {[%clk 0:01:46]}  Nf4 {[%clk 0:01:40]} 23. Bxf4 {[%clk 0:01:37]}  Bxf4 {[%clk 0:01:40]} 24. Ne4 {[%clk 0:01:31]}  Nc4 {[%clk 0:01:30]} 25. Nd3 {[%clk 0:01:29]}  Bxe4 {[%clk 0:01:21]} 26. fxe4 {[%clk 0:01:23]}  Be3+ {[%clk 0:01:20]} 27. Kh1 {[%clk 0:01:24]}  Bxd4 {[%clk 0:01:20]} 28. Ne1 {[%clk 0:01:10]}  Be5 {[%clk 0:01:13]} 29. Nf3 {[%clk 0:01:07]}  Bf4 {[%clk 0:01:10]} 30. a4 {[%clk 0:01:02]}  Ne3 {[%clk 0:01:00]} 31. Rxc8+ {[%clk 0:00:59]}  Qxc8 {[%clk 0:01:01]} 32. Ra1 {[%clk 0:00:32]}  Qc4 {[%clk 0:00:43]} 33. Qxc4 {[%clk 0:00:27]}  Nxc4 {[%clk 0:00:43]} 34. b3 {[%clk 0:00:22]}  Nd2 {[%clk 0:00:38]} 35. axb5 {[%clk 0:00:17]}  axb5 {[%clk 0:00:36]} 36. Nxd2 {[%clk 0:00:13]}  Bxd2 {[%clk 0:00:36]} 37. Ra6 {[%clk 0:00:12]}  b4 {[%clk 0:00:25]} 38. Rxd6 {[%clk 0:00:12]}  Bc3 {[%clk 0:00:26]} 39. Rd7 {[%clk 0:00:11]}  Kf8 {[%clk 0:00:25]} 40. Kg1 {[%clk 0:00:12]}  g5 {[%clk 0:00:24]} 41. Kf2 {[%clk 0:00:11]}  Kg7 {[%clk 0:00:24]} 42. Kf3 {[%clk 0:00:12]}  h5 {[%clk 0:00:23]} 43. Ke3 {[%clk 0:00:11]}  Kf6 {[%clk 0:00:24]} 44. Rb7 {[%clk 0:00:10]}  g4 {[%clk 0:00:18]} 45. hxg4 {[%clk 0:00:10]}  hxg4 {[%clk 0:00:19]} 46. Kf4 {[%clk 0:00:11]}  Bd2+ {[%clk 0:00:16]} 47. Kxg4 {[%clk 0:00:10]}  Ke5 {[%clk 0:00:17]} 48. Rxf7 {[%clk 0:00:06]}  Kxe4 {[%clk 0:00:17]} 49. Kh5 {[%clk 0:00:06]}  Kd3 {[%clk 0:00:12]} 50. Rc7 {[%clk 0:00:05]}  e5 {[%clk 0:00:10]} 51. g4 {[%clk 0:00:03]}  e4 {[%clk 0:00:09]} 52. Rd7+ {[%clk 0:00:03]}  Kc3 {[%clk 0:00:08]} 53. Re7 {[%clk 0:00:03]}  e3 {[%clk 0:00:08]} 54. g5 {[%clk 0:00:03]}  Kxb3 {[%clk 0:00:06]} 55. g6 {[%clk 0:00:03]}  Bc3 {[%clk 0:00:06]} 56. Rxe3 {[%clk 0:00:03]}  Ka2 {[%clk 0:00:05]} 57. Rg3 {[%clk 0:00:01]}  Bd4 {[%clk 0:00:04]} 58. Rg4 {[%clk 0:00:02]}  Bc3 {[%clk 0:00:04]} 59. Rxb4 {[%clk 0:00:02]}  Ka3 {[%clk 0:00:03]} 60. Rg4 {[%clk 0:00:03]} 1-0


[Site "https://www.chess.com"]

[Event "Titled Tuesday Blitz February 21 Early 2023"]
[White "Jeet, Jain"]
[Black "Real_OceanStorm"]
[WhiteFideId "5073022"]
[WhiteElo "2199"]
[BlackElo "2781"]
[Result "0-1"]
[Round "08"]
[TimeControl "180+2"]
[Date "2023.02.21"]
[WhiteClock "0:00:08"]
[BlackClock "0:00:08"]

1. d4 {[%clk 0:03:00]}  d5 {[%clk 0:02:59]} 2. Nf3 {[%clk 0:03:00]}  Nf6 {[%clk 0:02:59]} 3. Bf4 {[%clk 0:03:01]}  g6 {[%clk 0:02:59]} 4. e3 {[%clk 0:02:58]}  Bg7 {[%clk 0:02:59]} 5. h3 {[%clk 0:02:58]}  O-O {[%clk 0:02:59]} 6. Bd3 {[%clk 0:02:56]}  c5 {[%clk 0:02:59]} 7. c3 {[%clk 0:02:55]}  Nc6 {[%clk 0:02:59]} 8. O-O {[%clk 0:02:53]}  c4 {[%clk 0:02:59]} 9. Bc2 {[%clk 0:02:52]}  b5 {[%clk 0:02:59]} 10. Nbd2 {[%clk 0:02:50]}  a5 {[%clk 0:02:59]} 11. e4 {[%clk 0:02:49]}  dxe4 {[%clk 0:02:57]} 12. Nxe4 {[%clk 0:02:49]}  Nd5 {[%clk 0:02:57]} 13. Bg3 {[%clk 0:02:46]}  a4 {[%clk 0:02:50]} 14. a3 {[%clk 0:02:44]}  Bf5 {[%clk 0:02:46]} 15. Nc5 {[%clk 0:02:39]}  Bxc2 {[%clk 0:02:45]} 16. Qxc2 {[%clk 0:02:40]}  Re8 {[%clk 0:02:27]} 17. Rfe1 {[%clk 0:02:39]}  Na5 {[%clk 0:02:23]} 18. Rad1 {[%clk 0:02:14]}  Nb3 {[%clk 0:01:57]} 19. Ne4 {[%clk 0:02:12]}  Qb6 {[%clk 0:01:56]} 20. Be5 {[%clk 0:02:11]}  Rad8 {[%clk 0:01:38]} 21. Bxg7 {[%clk 0:02:10]}  Kxg7 {[%clk 0:01:39]} 22. Ne5 {[%clk 0:02:08]}  f6 {[%clk 0:01:38]} 23. Nf3 {[%clk 0:02:06]}  h5 {[%clk 0:01:34]} 24. h4 {[%clk 0:02:05]}  Nf4 {[%clk 0:01:17]} 25. Ng3 {[%clk 0:02:02]}  Nd3 {[%clk 0:01:17]} 26. Re3 {[%clk 0:01:58]}  e5 {[%clk 0:00:55]} 27. dxe5 {[%clk 0:01:56]}  fxe5 {[%clk 0:00:55]} 28. Qe2 {[%clk 0:01:50]}  Nf4 {[%clk 0:00:54]} 29. Qc2 {[%clk 0:01:44]}  Nd3 {[%clk 0:00:46]} 30. Qe2 {[%clk 0:01:40]}  Qb7 {[%clk 0:00:45]} 31. Rf1 {[%clk 0:01:33]}  Nf4 {[%clk 0:00:43]} 32. Qc2 {[%clk 0:01:31]}  Nd2 {[%clk 0:00:39]} 33. Rd1 {[%clk 0:01:03]}  Nxf3+ {[%clk 0:00:38]} 34. Rxf3 {[%clk 0:01:04]}  Rd3 {[%clk 0:00:25]} 35. Rdxd3 {[%clk 0:00:54]}  cxd3 {[%clk 0:00:25]} 36. Qd2 {[%clk 0:00:54]}  Qd5 {[%clk 0:00:24]} 37. Nf1 {[%clk 0:00:51]}  Ne2+ {[%clk 0:00:15]} 38. Kh1 {[%clk 0:00:46]}  e4 {[%clk 0:00:10]} 39. Re3 {[%clk 0:00:46]}  Qd8 {[%clk 0:00:06]} 40. g3 {[%clk 0:00:41]}  Qf6 {[%clk 0:00:06]} 41. f3 {[%clk 0:00:36]}  Rf8 {[%clk 0:00:06]} 42. Kh2 {[%clk 0:00:12]}  Qf5 {[%clk 0:00:03]} 43. f4 {[%clk 0:00:06]}  b4 {[%clk 0:00:03]} 44. axb4 {[%clk 0:00:06]}  a3 {[%clk 0:00:03]} 45. bxa3 {[%clk 0:00:06]}  Qe6 {[%clk 0:00:04]} 46. a4 {[%clk 0:00:07]}  Rc8 {[%clk 0:00:03]} 47. a5 {[%clk 0:00:05]}  Qc4 {[%clk 0:00:03]} 48. Kh3 {[%clk 0:00:02]}  Rb8 {[%clk 0:00:03]} 49. Nh2 {[%clk 0:00:01]}  Nxc3 {[%clk 0:00:03]} 50. g4 {[%clk 0:00:01]}  Nd5 {[%clk 0:00:04]} 51. gxh5 {[%clk 0:00:01]}  Qxb4 {[%clk 0:00:03]} 52. h6+ {[%clk 0:00:01]}  Kh7 {[%clk 0:00:03]} 53. Qxb4 {[%clk 0:00:01]}  Rxb4 {[%clk 0:00:03]} 54. Rg3 {[%clk 0:00:01]}  e3 {[%clk 0:00:04]} 55. Nf3 {[%clk 0:00:01]}  Nxf4+ {[%clk 0:00:03]} 56. Kh2 {[%clk 0:00:01]}  Rb2+ {[%clk 0:00:03]} 57. Kh1 {[%clk 0:00:01]}  Kxh6 {[%clk 0:00:03]} 58. Ne5 {[%clk 0:00:01]}  e2 {[%clk 0:00:03]} 59. Nxd3 {[%clk 0:00:01]}  Nxd3 {[%clk 0:00:03]} 60. Re3 {[%clk 0:00:02]}  e1=Q+ {[%clk 0:00:03]} 61. Rxe1 {[%clk 0:00:03]}  Nxe1 {[%clk 0:00:04]} 62. a6 {[%clk 0:00:04]}  Nd3 {[%clk 0:00:05]} 63. h5 {[%clk 0:00:04]}  Ra2 {[%clk 0:00:05]} 64. hxg6 {[%clk 0:00:05]}  Kxg6 {[%clk 0:00:05]} 65. Kg1 {[%clk 0:00:06]}  Rxa6 {[%clk 0:00:06]} 66. Kf1 {[%clk 0:00:07]}  Re6 {[%clk 0:00:06]} 67. Kg1 {[%clk 0:00:07]}  Kf5 {[%clk 0:00:06]} 68. Kg2 {[%clk 0:00:08]}  Kg4 {[%clk 0:00:07]} 69. Kf1 {[%clk 0:00:08]}  Kg3 {[%clk 0:00:07]} 70. Kg1 {[%clk 0:00:08]}  Re1# {[%clk 0:00:08]} 0-1


[Site "https://www.chess.com"]

[Event "Titled Tuesday Blitz February 21 Early 2023"]
[White "Mamedov, Edgar"]
[Black "Korchmar, Vasiliy"]
[WhiteFideId "13739980"]
[BlackFideId "24131750"]
[WhiteElo "2193"]
[BlackElo "2438"]
[Result "0-1"]
[Round "08"]
[TimeControl "180+2"]
[Date "2023.02.21"]
[WhiteClock "0:00:01"]
[BlackClock "0:01:41"]

1. d4 {[%clk 0:03:00]}  d5 {[%clk 0:02:59]} 2. c4 {[%clk 0:02:59]}  c6 {[%clk 0:02:59]} 3. Nf3 {[%clk 0:02:59]}  Nf6 {[%clk 0:03:00]} 4. e3 {[%clk 0:02:54]}  e6 {[%clk 0:02:59]} 5. Nc3 {[%clk 0:02:54]}  Nbd7 {[%clk 0:02:58]} 6. Qc2 {[%clk 0:02:52]}  Bd6 {[%clk 0:02:57]} 7. Be2 {[%clk 0:02:51]}  O-O {[%clk 0:02:54]} 8. O-O {[%clk 0:02:51]}  dxc4 {[%clk 0:02:54]} 9. a4 {[%clk 0:02:50]}  e5 {[%clk 0:02:54]} 10. Bxc4 {[%clk 0:02:46]}  exd4 {[%clk 0:02:52]} 11. exd4 {[%clk 0:02:45]}  Nb6 {[%clk 0:02:50]} 12. Ba2 {[%clk 0:02:40]}  Nbd5 {[%clk 0:02:51]} 13. Bb1 {[%clk 0:02:04]}  Nb4 {[%clk 0:02:51]} 14. Qd2 {[%clk 0:01:55]}  Bg4 {[%clk 0:02:45]} 15. Ne5 {[%clk 0:01:55]}  Bh5 {[%clk 0:02:45]} 16. Qg5 {[%clk 0:01:50]}  Bg6 {[%clk 0:02:33]} 17. Nxg6 {[%clk 0:01:47]}  fxg6 {[%clk 0:02:30]} 18. Be3 {[%clk 0:01:38]}  Qc7 {[%clk 0:02:30]} 19. Qh4 {[%clk 0:01:35]}  Rae8 {[%clk 0:02:27]} 20. Ba2+ {[%clk 0:01:15]}  Nxa2 {[%clk 0:02:26]} 21. Rxa2 {[%clk 0:01:15]}  Qf7 {[%clk 0:02:21]} 22. Raa1 {[%clk 0:01:12]}  Nd5 {[%clk 0:02:21]} 23. Nxd5 {[%clk 0:01:04]}  Qxd5 {[%clk 0:02:22]} 24. Qh3 {[%clk 0:00:54]}  Rf5 {[%clk 0:02:22]} 25. g3 {[%clk 0:00:50]}  Ref8 {[%clk 0:02:16]} 26. Qg2 {[%clk 0:00:50]}  Rf3 {[%clk 0:02:17]} 27. a5 {[%clk 0:00:40]}  a6 {[%clk 0:02:17]} 28. Rad1 {[%clk 0:00:23]}  h5 {[%clk 0:02:17]} 29. Kh1 {[%clk 0:00:14]}  Qxa5 {[%clk 0:02:12]} 30. d5 {[%clk 0:00:13]}  cxd5 {[%clk 0:02:13]} 31. Qh3 {[%clk 0:00:14]}  R8f5 {[%clk 0:02:07]} 32. Qh4 {[%clk 0:00:11]}  Qb4 {[%clk 0:02:01]} 33. Qxb4 {[%clk 0:00:09]}  Bxb4 {[%clk 0:02:01]} 34. Kg2 {[%clk 0:00:09]}  g5 {[%clk 0:01:58]} 35. Rxd5 {[%clk 0:00:09]}  Rxf2+ {[%clk 0:01:54]} 36. Bxf2 {[%clk 0:00:07]}  Rxd5 {[%clk 0:01:55]} 37. Rc1 {[%clk 0:00:06]}  Rd2 {[%clk 0:01:49]} 38. Rc8+ {[%clk 0:00:06]}  Kh7 {[%clk 0:01:49]} 39. Kf1 {[%clk 0:00:03]}  Rxb2 {[%clk 0:01:46]} 40. Rc7 {[%clk 0:00:03]}  Bd6 {[%clk 0:01:41]} 41. Rd7 {[%clk 0:00:03]}  Be5 {[%clk 0:01:42]} 42. Re7 {[%clk 0:00:03]}  Bf6 {[%clk 0:01:41]} 43. Rd7 {[%clk 0:00:03]}  a5 {[%clk 0:01:41]} 44. Bc5 {[%clk 0:00:02]}  a4 {[%clk 0:01:40]} 45. h4 {[%clk 0:00:01]}  gxh4 {[%clk 0:01:40]} 46. gxh4 {[%clk 0:00:01]}  b6 {[%clk 0:01:41]} 0-1


[Site "https://www.chess.com"]